bitfinex/quotes_BTCUSD_20250615
["timestamp","ask_amount","ask_price","bid_price","bid_amount"]
[1750002830386,0.0335,105760.0,105750.0,1.05138707]
[1750002830614,0.0335,105760.0,105750.0,1.22359698]
[1750002830833,0.0335,105760.0,105750.0,0.60176556]
[1750002831044,0.0335,105760.0,105750.0,0.61949553]
[1750002831263,0.08756435,105760.0,105750.0,1.16686689]
[1750002831925,0.08756435,105760.0,105750.0,1.1491369]
[1750002832141,0.08756435,105760.0,105750.0,1.16686689]
[1750002834066,0.08756435,105760.0,105750.0,1.1491369]
[1750002834282,0.0335,105760.0,105750.0,1.16686694]
[1750002834488,0.0335,105760.0,105750.0,1.16686697]
[1750002834701,0.0335,105760.0,105750.0,1.16686698]
[1750002835145,0.0335,105760.0,105750.0,1.16686697]
[1750002835557,0.0335,105760.0,105750.0,1.1491369]
[1750002835847,0.0335,105760.0,105750.0,1.16686697]
[1750002836040,0.0335,105760.0,105750.0,1.16686685]
[1750002836486,0.0335,105760.0,105750.0,1.16686675]
[1750002836701,0.0335,105760.0,105750.0,1.16686678]
[1750002836904,0.0335,105760.0,105750.0,1.16688519]
[1750002837115,0.0335,105760.0,105750.0,1.16688523]
[1750002837324,0.0335,105760.0,105750.0,1.16688524]
[1750002837623,0.0335,105760.0,105750.0,1.16688525]
[1750002837879,0.0335,105760.0,105750.0,1.16688531]
[1750002838132,0.0335,105760.0,105750.0,1.16688526]
[1750002838435,0.0335,105760.0,105750.0,1.16688528]
[1750002839195,0.0335,105760.0,105750.0,1.1668853]
[1750002839421,0.0335,105760.0,105750.0,1.16688528]
[1750002839645,0.0335,105760.0,105750.0,1.16688533]
[1750002840182,0.0335,105760.0,105750.0,1.1668854]
[1750002840658,0.0335,105760.0,105750.0,1.16688537]
[1750002840877,0.0335,105760.0,105750.0,1.1491369]
[1750002841090,0.0335,105760.0,105750.0,1.16688538]
[1750002841308,0.0335,105760.0,105750.0,1.16688536]
[1750002841760,0.0335,105760.0,105750.0,1.16688538]
[1750002841992,0.0335,105760.0,105750.0,1.1491369]
[1750002842247,0.0335,105760.0,105750.0,1.16688124]
[1750002842470,0.0335,105760.0,105750.0,1.16688123]
[1750002843371,0.0335,105760.0,105750.0,1.16688119]
[1750002843600,0.0335,105760.0,105750.0,1.1491369]
[1750002843839,0.0335,105760.0,105750.0,1.16688119]
[1750002844087,0.0335,105760.0,105750.0,1.16688113]
[1750002844495,0.0335,105760.0,105750.0,1.22361132]
[1750002844704,0.0335,105760.0,105750.0,1.22361127]
[1750002844912,0.0335,105760.0,105750.0,1.22361128]
[1750002845371,0.0335,105760.0,105750.0,1.22361125]
[1750002845814,0.0335,105760.0,105750.0,1.20586707]
[1750002846084,0.0335,105760.0,105750.0,1.22361138]
[1750002846302,0.0335,105760.0,105750.0,1.22361137]
[1750002846755,0.0335,105760.0,105750.0,1.22361136]
[1750002847171,0.0335,105760.0,105750.0,1.22361135]
[1750002847391,0.0335,105760.0,105750.0,1.22361136]
[1750002847601,0.0335,105760.0,105750.0,1.20586707]
[1750002848026,0.0335,105760.0,105750.0,1.22361133]
[1750002848283,0.0335,105760.0,105750.0,1.20586707]
[1750002848481,0.0335,105760.0,105750.0,1.22361129]
[1750002848982,0.0335,105760.0,105750.0,1.22361128]
[1750002849194,0.0335,105760.0,105750.0,1.22361131]
[1750002849408,0.0335,105760.0,105750.0,1.20586707]
[1750002849628,0.0335,105760.0,105750.0,1.22361137]
[1750002849843,0.0335,105760.0,105750.0,1.20586707]
[1750002850064,0.0335,105760.0,105750.0,1.22361144]
[1750002850276,0.0335,105760.0,105750.0,1.22361146]
[1750002850487,0.0335,105760.0,105750.0,1.20586707]
[1750002850910,0.0335,105760.0,105750.0,1.22361146]
[1750002851341,0.0335,105760.0,105750.0,1.20586707]
[1750002851787,0.0335,105760.0,105750.0,0.61950997]
[1750002851997,0.0335,105760.0,105750.0,1.22361148]
[1750002852210,0.0335,105760.0,105750.0,1.20586707]
[1750002852433,0.0335,105760.0,105750.0,0.61951011]
[1750002852647,0.0335,105760.0,105750.0,1.20586707]
[1750002852884,0.0335,105760.0,105750.0,1.16688165]
[1750002853101,0.0335,105760.0,105750.0,1.1491369]
[1750002853317,0.0335,105760.0,105750.0,1.16688165]
[1750002853524,0.0335,105760.0,105750.0,1.22361182]
[1750002853757,0.0335,105760.0,105750.0,1.20586707]
[1750002853996,0.0335,105760.0,105750.0,1.22361181]
[1750002854243,0.0335,105760.0,105750.0,1.22361177]
[1750002854454,0.0335,105760.0,105750.0,1.16688154]
[1750002854666,0.0335,105760.0,105750.0,1.22361171]
[1750002854888,0.0335,105760.0,105750.0,0.6195102]
[1750002855133,0.0335,105760.0,105750.0,1.22361137]
[1750002855802,0.0335,105760.0,105750.0,1.22361564]
[1750002856239,0.0335,105760.0,105750.0,1.22361283]
[1750002856449,0.0335,105760.0,105750.0,1.20586707]
[1750002857069,0.0335,105760.0,105750.0,1.22361298]
[1750002857270,0.0335,105760.0,105750.0,1.2236129]
[1750002857572,0.0335,105760.0,105750.0,1.22361297]
[1750002857877,0.0335,105760.0,105750.0,1.22361296]
[1750002858080,0.0335,105760.0,105750.0,1.20586707]
[1750002858318,0.0335,105760.0,105750.0,1.22361297]
[1750002858528,0.0335,105760.0,105750.0,1.22361289]
[1750002858729,0.0335,105760.0,105750.0,1.22361298]
[1750002858936,0.0335,105760.0,105750.0,1.20586707]
[1750002859144,0.0335,105760.0,105750.0,1.22361297]
[1750002859454,0.0335,105760.0,105750.0,1.20586707]
[1750002859684,0.0335,105760.0,105750.0,1.22361298]
[1750002859889,0.0335,105760.0,105750.0,1.20586707]
[1750002860072,0.0335,105760.0,105750.0,1.22361298]
[1750002860299,0.0335,105760.0,105750.0,1.22361302]
[1750002860504,0.0335,105760.0,105750.0,1.22361306]
[1750002861118,0.0335,105760.0,105750.0,1.22361301]
[1750002861334,0.0335,105760.0,105750.0,1.22361302]
[1750002861555,0.0335,105760.0,105750.0,1.20586707]
[1750002861769,0.0335,105760.0,105750.0,1.22361309]
[1750002861996,0.0335,105760.0,105750.0,1.20586707]
[1750002862200,0.0335,105760.0,105750.0,1.22361309]
[1750002863494,0.0335,105760.0,105750.0,1.22361308]
[1750002863699,0.0335,105760.0,105750.0,1.20586707]
[1750002865446,0.0335,105760.0,105750.0,1.1491369]
[1750002865649,0.0335,105760.0,105750.0,1.16688291]
[1750002865859,0.0335,105760.0,105750.0,1.1491369]
[1750002866075,0.0335,105760.0,105750.0,1.1668829]
[1750002866284,0.0335,105760.0,105750.0,1.1491369]
[1750002867141,0.0335,105760.0,105750.0,1.16688307]
[1750002867344,0.0335,105760.0,105750.0,1.1668831]
[1750002867581,0.0335,105760.0,105750.0,1.1491369]
[1750002868215,0.0335,105760.0,105750.0,1.16688311]
[1750002868423,0.0335,105760.0,105750.0,1.22361328]
[1750002868625,0.0335,105760.0,105750.0,1.22361324]
[1750002868833,0.0335,105760.0,105750.0,1.20586707]
[1750002869283,0.0335,105760.0,105750.0,1.22361286]
[1750002869821,0.0335,105760.0,105750.0,1.2236129]
[1750002870069,0.0335,105760.0,105750.0,1.22361286]
[1750002870335,0.0335,105760.0,105750.0,1.20586707]
[1750002870573,0.0335,105760.0,105750.0,1.22361286]
[1750002870867,0.0335,105760.0,105750.0,1.20586707]
[1750002871121,0.0335,105760.0,105750.0,1.22361304]
[1750002871376,0.0335,105760.0,105750.0,1.1491369]
[1750002871605,0.0335,105760.0,105750.0,1.16688288]
[1750002871816,0.0335,105760.0,105750.0,1.22361305]
[1750002872031,0.0335,105760.0,105750.0,0.56278137]
[1750002872243,0.0335,105760.0,105750.0,1.1668849]
[1750002872436,0.0335,105760.0,105750.0,1.16688489]
[1750002872680,0.0335,105760.0,105750.0,1.20586707]
[1750002872927,0.0335,105760.0,105750.0,1.22361504]
[1750002873163,0.0335,105760.0,105750.0,1.80996858]
[1750002874068,0.0335,105760.0,105750.0,1.8277164]
[1750002874519,0.0335,105760.0,105750.0,1.80996858]
[1750002874793,0.0335,105760.0,105750.0,1.2236149]
[1750002875073,0.0335,105760.0,105750.0,1.22361486]
[1750002875314,0.0335,105760.0,105750.0,1.20586707]
[1750002876065,0.0335,105760.0,105750.0,1.22361474]
[1750002876330,0.0335,105760.0,105750.0,1.20586707]
[1750002876565,0.0335,105760.0,105750.0,1.22361481]
[1750002877024,0.0335,105760.0,105750.0,1.20586707]
[1750002877507,0.0335,105760.0,105750.0,1.22361504]
[1750002877720,0.0335,105760.0,105750.0,1.22361499]
[1750002878585,0.0335,105760.0,105750.0,1.20586707]
[1750002878802,0.0335,105760.0,105750.0,1.22361499]
[1750002879015,0.0335,105760.0,105750.0,1.20586707]
[1750002879232,0.0335,105760.0,105750.0,1.223615]
[1750002879663,0.0335,105760.0,105750.0,1.20586707]
[1750002879877,0.0335,105760.0,105750.0,1.22361502]
[1750002880093,0.0335,105760.0,105750.0,1.20586707]
[1750002880307,0.0335,105760.0,105750.0,1.22361502]
[1750002880540,0.0335,105760.0,105750.0,1.22361501]
[1750002880759,0.0335,105760.0,105750.0,1.20148317]
[1750002880971,0.0335,105760.0,105750.0,1.21923111]
[1750002882039,0.0335,105760.0,105750.0,1.2192311]
[1750002882273,0.0335,105760.0,105750.0,1.21923111]
[1750002883622,0.0335,105760.0,105750.0,1.2192311]
[1750002884057,0.0335,105760.0,105750.0,1.21923111]
[1750002884717,0.0335,105760.0,105750.0,1.2192311]
[1750002885165,0.0335,105760.0,105750.0,1.20148317]
[1750002885373,0.0335,105760.0,105750.0,1.21923116]
[1750002885795,0.0335,105760.0,105750.0,1.21923117]
[1750002885999,0.0335,105760.0,105750.0,1.21923157]
[1750002886459,0.0335,105760.0,105750.0,1.20148317]
[1750002886677,0.0335,105760.0,105750.0,1.2192316]
[1750002887325,0.0335,105760.0,105750.0,1.20148317]
[1750002887960,0.0335,105760.0,105750.0,1.2192316]
[1750002888194,0.0335,105760.0,105750.0,1.16250152]
[1750002888404,0.0335,105760.0,105750.0,1.16250132]
[1750002888637,0.0335,105760.0,105750.0,1.16250144]
[1750002889057,0.0335,105760.0,105750.0,1.1625016]
[1750002889270,0.0335,105760.0,105750.0,1.144753]
[1750002889489,0.03874077,105760.0,105750.0,1.16250162]
[1750002889704,0.03874077,105760.0,105750.0,1.16250167]
[1750002889962,0.03874077,105760.0,105750.0,1.16250166]
[1750002890596,0.03874077,105760.0,105750.0,1.17314761]
[1750002890823,0.03874077,105760.0,105750.0,1.19089651]
[1750002891250,0.03874077,105760.0,105750.0,1.03641651]
[1750002891435,0.03874077,105760.0,105750.0,1.17314761]
[1750002891879,0.03874077,105760.0,105750.0,1.19089654]
[1750002892759,0.03874077,105760.0,105750.0,1.19089651]
[1750002892972,0.03874077,105760.0,105750.0,1.19089652]
[1750002893401,0.03874077,105760.0,105750.0,1.19089651]
[1750002893610,0.03874077,105760.0,105750.0,1.19089646]
[1750002893863,0.03874077,105760.0,105750.0,1.1908965]
[1750002894283,0.03874077,105760.0,105750.0,1.19089652]
[1750002894487,0.03874077,105760.0,105750.0,1.17314761]
[1750002894898,0.03874077,105760.0,105750.0,1.144753]
[1750002895114,0.03874077,105760.0,105750.0,1.17314394]
[1750002895323,0.03874077,105760.0,105750.0,1.19089275]
[1750002895533,0.03874077,105760.0,105750.0,1.17314393]
[1750002895739,0.03874077,105760.0,105750.0,1.19089277]
[1750002896632,0.03874077,105760.0,105750.0,1.17314393]
[1750002896840,0.0335,105760.0,105750.0,1.17314393]
[1750002897051,0.0335,105760.0,105750.0,1.19089271]
[1750002897341,0.0335,105760.0,105750.0,1.19089198]
[1750002897962,0.0335,105760.0,105750.0,1.17314323]
[1750002898370,0.0335,105760.0,105750.0,1.19089199]
[1750002898576,0.0335,105760.0,105750.0,1.16250176]
[1750002898784,0.0335,105760.0,105750.0,1.16250167]
[1750002899209,0.0335,105760.0,105750.0,1.144753]
[1750002899631,0.0335,105760.0,105750.0,1.1625017]
[1750002899839,0.0335,105760.0,105750.0,1.16250172]
[1750002900045,0.0335,105760.0,105750.0,1.144753]
[1750002900275,0.0335,105760.0,105750.0,1.16250167]
[1750002900495,0.0335,105760.0,105750.0,1.17314324]
[1750002900713,0.03874078,105760.0,105750.0,1.17314324]
[1750002901149,0.03874078,105760.0,105750.0,1.19089205]
[1750002901602,0.03874078,105760.0,105750.0,1.17314324]
[1750002901811,0.03874078,105760.0,105750.0,1.19089209]
[1750002902018,0.03874078,105760.0,105750.0,1.17314324]
[1750002902453,0.03874078,105760.0,105750.0,1.19089224]
[1750002902674,0.03874078,105760.0,105750.0,1.02187135]
[1750002902881,0.03874078,105760.0,105750.0,1.15860239]
[1750002903297,0.03874078,105760.0,105750.0,1.1763514]
[1750002903523,0.03874078,105760.0,105750.0,1.15860239]
[1750002903764,0.03874078,105760.0,105750.0,1.1763514]
[1750002903970,0.03874078,105760.0,105750.0,1.15860239]
[1750002904585,0.03874078,105760.0,105750.0,1.17634609]
[1750002904802,0.03874078,105760.0,105750.0,1.17634611]
[1750002905015,0.03874078,105760.0,105750.0,0.58678551]
[1750002905277,0.03874078,105760.0,105750.0,1.19088708]
[1750002905505,0.03874078,105760.0,105750.0,1.19088705]
[1750002905719,0.03874078,105760.0,105750.0,1.190887]
[1750002905936,0.03874078,105760.0,105750.0,1.19088701]
[1750002906176,0.03874078,105760.0,105750.0,1.19088699]
[1750002906400,0.03874078,105760.0,105750.0,1.17314324]
[1750002906604,0.03874078,105760.0,105750.0,1.19088697]
[1750002906809,0.03874078,105760.0,105750.0,1.01866324]
[1750002907058,0.03874078,105760.0,105750.0,1.19084692]
[1750002907258,0.0335,105760.0,105750.0,1.19084692]
[1750002907476,0.0335,105760.0,105750.0,1.19084683]
[1750002907695,0.0335,105760.0,105750.0,1.144713]
[1750002907896,0.0335,105760.0,105750.0,1.1624566]
[1750002908314,0.0335,105760.0,105750.0,1.16245659]
[1750002908517,0.0335,105760.0,105750.0,1.16245661]
[1750002909604,0.0335,105760.0,105750.0,0.5583551]
[1750002909811,0.0335,105760.0,105750.0,1.16245661]
[1750002910441,0.0335,105760.0,105750.0,1.144713]
[1750002910656,0.0335,105760.0,105750.0,1.16245661]
[1750002911626,0.0335,105760.0,105750.0,1.144713]
[1750002911835,0.0335,105760.0,105750.0,1.16245661]
[1750002912045,0.0335,105760.0,105750.0,1.1624566]
[1750002912256,0.0335,105760.0,105750.0,1.76655798]
[1750002912472,0.0335,105760.0,105750.0,1.74881451]
[1750002912685,0.0335,105760.0,105750.0,1.76655801]
[1750002913181,0.0335,105760.0,105750.0,1.76655803]
[1750002913382,0.0335,105760.0,105750.0,1.74881451]
[1750002913808,0.0335,105760.0,105750.0,1.76655801]
[1750002914026,0.0335,105760.0,105750.0,1.74881451]
[1750002914236,0.0335,105760.0,105750.0,1.76655792]
[1750002914446,0.0335,105760.0,105750.0,0.55835492]
[1750002914662,0.0335,105760.0,105750.0,1.74881451]
[1750002914912,0.0335,105760.0,105750.0,1.76655799]
[1750002915170,0.0335,105760.0,105750.0,1.76655795]
[1750002915370,0.0335,105760.0,105750.0,1.7665579]
[1750002915541,0.0335,105760.0,105750.0,1.76656315]
[1750002915691,0.0335,105760.0,105750.0,1.76656317]
[1750002915885,0.0335,105760.0,105750.0,1.74881451]
[1750002916087,0.0335,105760.0,105750.0,1.76656322]
[1750002916338,0.0335,105760.0,105750.0,1.76656327]
[1750002916711,0.0335,105760.0,105750.0,1.76656324]
[1750002917143,0.0335,105760.0,105750.0,1.74881451]
[1750002917282,0.0335,105760.0,105750.0,1.76656326]
[1750002917694,0.0335,105760.0,105750.0,1.74881451]
[1750002917902,0.0335,105760.0,105750.0,1.80554468]
[1750002918107,0.0335,105760.0,105750.0,1.76656327]
[1750002918315,0.0335,105760.0,105750.0,1.74881451]
[1750002919190,0.0335,105760.0,105750.0,0.55836023]
[1750002919400,0.0335,105760.0,105750.0,1.76656323]
[1750002919614,0.0335,105760.0,105750.0,1.76656285]
[1750002919819,0.0335,105760.0,105750.0,1.76656243]
[1750002920025,0.0335,105760.0,105750.0,1.76656253]
[1750002920242,0.0335,105760.0,105750.0,1.16246102]
[1750002920454,0.0335,105760.0,105750.0,1.144713]
[1750002920896,0.0335,105760.0,105750.0,1.16246075]
[1750002921105,0.0335,105760.0,105750.0,1.1624608]
[1750002921320,0.0335,105760.0,105750.0,1.16246082]
[1750002921545,0.0335,105760.0,105750.0,1.144713]
[1750002922192,0.0335,105760.0,105750.0,1.16246087]
[1750002922402,0.0335,105760.0,105750.0,1.16246059]
[1750002922608,0.0335,105760.0,105750.0,1.16246039]
[1750002922843,0.0335,105760.0,105750.0,1.16246021]
[1750002923083,0.0335,105760.0,105750.0,1.16246028]
[1750002923386,0.0335,105760.0,105750.0,1.16246]
[1750002923666,0.0335,105760.0,105750.0,1.16245986]
[1750002923883,0.0335,105760.0,105750.0,1.144713]
[1750002924336,0.0335,105760.0,105750.0,1.16246003]
[1750002924871,0.0335,105760.0,105750.0,1.1624599]
[1750002925075,0.0335,105760.0,105750.0,1.144713]
[1750002925920,0.0335,105760.0,105750.0,1.16245994]
[1750002926208,0.0335,105760.0,105750.0,1.144713]
[1750002926420,0.0335,105760.0,105750.0,1.16245975]
[1750002926644,0.0335,105760.0,105750.0,1.144713]
[1750002927061,0.0335,105760.0,105750.0,1.16246119]
[1750002927263,0.0335,105760.0,105750.0,1.144713]
[1750002927472,0.0335,105760.0,105750.0,1.16246124]
[1750002927676,0.0335,105760.0,105750.0,1.16246136]
[1750002927875,0.0335,105760.0,105750.0,1.16246144]
[1750002928080,0.0335,105760.0,105750.0,1.16246128]
[1750002928320,0.0335,105760.0,105750.0,1.144713]
[1750002928529,0.0335,105760.0,105750.0,1.16246076]
[1750002928737,0.0335,105760.0,105750.0,1.16246064]
[1750002928944,0.0335,105760.0,105750.0,1.16245606]
[1750002929162,0.0335,105760.0,105750.0,1.144713]
[1750002929383,0.0335,105760.0,105750.0,1.74881451]
[1750002929803,0.0335,105760.0,105750.0,1.80554468]
[1750002930221,0.0335,105760.0,105750.0,1.82328698]
[1750002930359,0.0335,105760.0,105750.0,1.66884698]
[1750002930567,0.0335,105760.0,105750.0,1.21918547]
[1750002930789,0.0335,105760.0,105750.0,1.16245593]
[1750002930989,0.0335,105760.0,105750.0,1.144713]
[1750002931211,0.0335,105760.0,105750.0,1.16245615]
[1750002931621,0.0335,105760.0,105750.0,1.16245614]
[1750002932066,0.0335,105760.0,105750.0,1.16245613]
[1750002932274,0.0335,105760.0,105750.0,1.144713]
[1750002932664,0.03874076,105760.0,105750.0,0.55835462]
[1750002932884,0.03874076,105760.0,105750.0,1.144713]
[1750002933329,0.03874076,105760.0,105750.0,1.16245632]
[1750002933551,0.03874076,105760.0,105750.0,1.144713]
[1750002933772,0.03874076,105760.0,105750.0,1.00801708]
[1750002934000,0.03874076,105760.0,105750.0,1.16245714]
[1750002934246,0.03874076,105760.0,105750.0,0.54061149]
[1750002934534,0.64284227,105760.0,105750.0,0.38617149]
[1750002934746,0.67120694,105760.0,105750.0,0.35661766]
[1750002934978,0.87922491,105760.0,105750.0,0.19712529]
[1750002935204,1.00530024,105760.0,105750.0,0.22433247]
[1750002935425,1.00530024,105760.0,105750.0,0.008]
[1750002935646,0.99584505,105760.0,105750.0,0.008]
[1750002935874,1.33584505,105760.0,105750.0,0.02575188]
[1750002936093,1.33584505,105760.0,105750.0,0.02575242]
[1750002936311,1.36427005,105760.0,105750.0,0.02575269]
[1750002936533,1.36427005,105760.0,105750.0,0.008]
[1750002937207,1.33584505,105760.0,105750.0,0.008]
[1750002938397,6.14209581,105760.0,105750.0,0.008]
[1750002938616,6.2101425,105760.0,105750.0,0.008]
[1750002939325,6.61880401,105760.0,105750.0,0.004]
[1750002939587,4.94069037,105750.0,105740.0,0.00047337]
[1750002939812,6.34128437,105750.0,105740.0,0.00047337]
[1750002940259,6.53572437,105750.0,105740.0,0.00047337]
[1750002940706,5.13308135,105750.0,105740.0,0.00047337]
[1750002940924,5.23137213,105750.0,105740.0,0.00047337]
[1750002941141,5.83547364,105750.0,105740.0,0.00047337]
[1750002941368,5.83847364,105750.0,105740.0,0.00247337]
[1750002941598,5.84047364,105750.0,105740.0,0.00247337]
[1750002941818,5.84047364,105750.0,105740.0,0.02022887]
[1750002941819,5.93662286,105750.0,105740.0,0.02022887]
[1750002942071,5.93662286,105750.0,105740.0,0.02022886]
[1750002942299,5.93662286,105750.0,105740.0,0.02022867]
[1750002942529,5.93662286,105750.0,105740.0,0.02022873]
[1750002942757,5.93662286,105750.0,105740.0,0.02022872]
[1750002943008,5.93662286,105750.0,105740.0,0.02022882]
[1750002943476,6.54072437,105750.0,105740.0,0.02022892]
[1750002943696,6.54072437,105750.0,105740.0,0.00247337]
[1750002943924,6.54072437,105750.0,105740.0,0.02022944]
[1750002944150,6.54072437,105750.0,105740.0,0.0202295]
[1750002944377,6.37785113,105750.0,105740.0,0.0202295]
[1750002944635,6.57249113,105750.0,105740.0,0.02022997]
[1750002944866,6.57249113,105750.0,105740.0,0.02023006]
[1750002945339,6.54092437,105750.0,105740.0,0.02023025]
[1750002945577,6.38628437,105750.0,105740.0,0.00247337]
[1750002945799,6.54088437,105750.0,105740.0,0.00247337]
[1750002946039,6.56931337,105750.0,105740.0,0.00247337]
[1750002946263,6.41471337,105750.0,105740.0,0.0202301]
[1750002946482,6.41471337,105750.0,105740.0,0.02023016]
[1750002946691,6.56935337,105750.0,105740.0,0.02023018]
[1750002946905,6.56935337,105750.0,105740.0,0.00247337]
[1750002947364,6.56935337,105750.0,105740.0,0.02023019]
[1750002947590,6.56935337,105750.0,105740.0,0.02023021]
[1750002947812,6.56935337,105750.0,105740.0,0.0202301]
[1750002948035,6.56931337,105750.0,105740.0,0.0202301]
[1750002948242,6.56931337,105750.0,105740.0,0.02023023]
[1750002948454,6.56931337,105750.0,105740.0,0.00247337]
[1750002950392,6.56923337,105750.0,105740.0,0.00247337]
[1750002950600,6.41471337,105750.0,105740.0,0.00247337]
[1750002950807,6.56923337,105750.0,105740.0,0.00247337]
[1750002951603,6.41471337,105750.0,105740.0,0.00247337]
[1750002952021,6.56919337,105750.0,105740.0,0.00247337]
[1750002955254,6.37471337,105750.0,105740.0,0.00247337]
[1750002955512,6.56919337,105750.0,105740.0,0.00247337]
[1750002957625,6.41471337,105750.0,105740.0,0.00247337]
[1750002958097,6.56919337,105750.0,105740.0,0.00247337]
[1750002959168,5.36099035,105750.0,105740.0,0.02023022]
[1750002959379,6.56919337,105750.0,105740.0,0.02023022]
[1750002959596,6.56919337,105750.0,105740.0,0.02023023]
[1750002960014,6.41471337,105750.0,105740.0,0.0202302]
[1750002960231,6.41471337,105750.0,105740.0,0.02023019]
[1750002960445,6.56919337,105750.0,105740.0,0.02023019]
[1750002960660,6.56919337,105750.0,105740.0,0.0202302]
[1750002961394,6.56919337,105750.0,105740.0,0.02023024]
[1750002961834,6.41471337,105750.0,105740.0,0.00247337]
[1750002962064,6.56919337,105750.0,105740.0,0.00247337]
[1750002962499,6.56919337,105750.0,105740.0,0.02023025]
[1750002963153,6.41471337,105750.0,105740.0,0.02023025]
[1750002963365,6.56919337,105750.0,105740.0,0.02023025]
[1750002963799,6.41471337,105750.0,105740.0,0.02023025]
[1750002964254,6.56919337,105750.0,105740.0,0.00247337]
[1750002964700,6.93745216,105750.0,105740.0,0.02023025]
[1750002965161,6.93745216,105750.0,105740.0,0.00247337]
[1750002965377,6.93745216,105750.0,105740.0,0.0202303]
[1750002965818,6.74297216,105750.0,105740.0,0.00247337]
[1750002966029,6.93745216,105750.0,105740.0,0.02023003]
[1750002966297,6.78297216,105750.0,105740.0,0.02023003]
[1750002966483,5.57476914,105750.0,105740.0,0.02023]
[1750002966726,6.78297216,105750.0,105740.0,0.02022998]
[1750002966943,6.93745216,105750.0,105740.0,0.02022997]
[1750002967156,6.93745216,105750.0,105740.0,0.00247337]
[1750002967367,6.93745216,105750.0,105740.0,0.02022997]
[1750002968430,6.93745216,105750.0,105740.0,0.0202275]
[1750002968648,6.97527539,105750.0,105740.0,0.00247337]
[1750002968859,6.97527539,105750.0,105740.0,0.0202275]
[1750002969484,6.97527539,105750.0,105740.0,0.00247337]
[1750002969695,6.97527539,105750.0,105740.0,0.0202275]
[1750002969922,6.97527539,105750.0,105740.0,0.00247337]
[1750002970341,6.97527539,105750.0,105740.0,0.0202275]
[1750002970972,6.97527539,105750.0,105740.0,0.00247337]
[1750002971398,6.97527539,105750.0,105740.0,0.0202275]
[1750002971613,6.97527539,105750.0,105740.0,0.00247337]
[1750002971815,6.97527539,105750.0,105740.0,0.0379816]
[1750002972029,6.97527539,105750.0,105740.0,0.02022748]
[1750002972255,6.78079539,105750.0,105740.0,0.00247337]
[1750002972507,6.78079539,105750.0,105740.0,0.0202275]
[1750002972736,6.97527539,105750.0,105740.0,0.00247337]
[1750002972957,6.97527539,105750.0,105740.0,0.0202275]
[1750002973184,6.78079539,105750.0,105740.0,0.00247337]
[1750002973407,6.82079539,105750.0,105740.0,0.00247337]
[1750002973878,5.76707237,105750.0,105740.0,0.00247337]
[1750002974103,6.9470166,105750.0,105740.0,0.00247337]
[1750002974329,7.00375145,105750.0,105740.0,0.00247337]
[1750002974542,6.84083821,105750.0,105740.0,0.00247337]
[1750002974769,6.99793498,105750.0,105740.0,0.00247337]
[1750002974991,7.00283712,105750.0,105740.0,0.01135108]
[1750002975240,6.97127036,105750.0,105740.0,0.01135114]
[1750002975463,6.97127036,105750.0,105740.0,0.00247337]
[1750002976128,6.97131036,105750.0,105740.0,0.00247337]
[1750002977477,5.7946741,105750.0,105740.0,0.00247337]
[1750002977751,7.00287712,105750.0,105740.0,0.00247337]
[1750002979350,7.00287712,105750.0,105690.0,0.21761331]
[1750002979351,0.35892048,105700.0,105690.0,0.21761331]
[1750002979560,0.50486011,105700.0,105690.0,0.25102172]
[1750002979805,0.49556,105700.0,105690.0,0.85512323]
[1750002980022,0.50502002,105700.0,105690.0,0.85512323]
[1750002980701,0.34,105700.0,105690.0,0.85512323]
[1750002980915,0.34,105700.0,105690.0,0.36180433]
[1750002981130,0.34,105700.0,105690.0,0.96590584]
[1750002981562,0.341,105700.0,105690.0,0.96990584]
[1750002981777,0.341,105700.0,105690.0,0.98756986]
[1750002981992,0.001,105700.0,105690.0,0.98756966]
[1750002982209,0.001,105700.0,105690.0,1.63167117]
[1750002982422,0.001,105700.0,105690.0,1.63167074]
[1750002982635,0.001,105700.0,105690.0,1.61400735]
[1750002982876,0.002,105700.0,105690.0,1.61400735]
[1750002983102,0.002,105700.0,105690.0,1.63167045]
[1750002983315,0.002,105700.0,105690.0,1.61400735]
[1750002983524,0.002,105700.0,105690.0,1.63167041]
[1750002983741,0.002,105700.0,105690.0,1.61400735]
[1750002983959,0.002,105700.0,105690.0,1.02756891]
[1750002984223,0.002,105700.0,105690.0,1.63167048]
[1750002984719,0.002,105700.0,105690.0,0.98756932]
[1750002984945,0.002,105700.0,105690.0,1.02756932]
[1750002985379,0.002,105700.0,105690.0,1.027569]
[1750002985627,0.002,105700.0,105690.0,0.987569]
[1750002985867,0.002,105700.0,105690.0,1.00990584]
[1750002986089,0.002,105700.0,105690.0,1.02756897]
[1750002986309,0.002,105700.0,105690.0,1.00990584]
[1750002986535,0.002,105700.0,105690.0,1.02756897]
[1750002986767,0.002,105700.0,105690.0,1.63167048]
[1750002986992,0.002,105700.0,105690.0,1.61400735]
[1750002987227,0.002,105700.0,105690.0,1.63167047]
[1750002987451,0.002,105700.0,105690.0,0.36580433]
[1750002987674,0.002,105700.0,105690.0,1.18324896]
[1750002987900,0.002,105700.0,105690.0,1.18324903]
[1750002988169,0.002,105700.0,105690.0,1.18324935]
[1750002988388,0.002,105700.0,105690.0,1.18324943]
[1750002988608,0.002,105700.0,105690.0,1.16558584]
[1750002988847,0.002,105700.0,105690.0,1.18324927]
[1750002989074,0.002,105700.0,105690.0,0.57914776]
[1750002989292,0.002,105700.0,105690.0,1.18324914]
[1750002989507,0.002,105700.0,105690.0,1.18324901]
[1750002989996,0.002,105700.0,105690.0,1.18324939]
[1750002990430,0.002,105700.0,105690.0,1.16562584]
[1750002990651,0.002,105700.0,105690.0,0.98756939]
[1750002990888,0.002,105700.0,105690.0,1.16558584]
[1750002991336,0.002,105700.0,105690.0,1.18324945]
[1750002991562,0.002,105700.0,105690.0,0.98756945]
[1750002991793,0.002,105700.0,105690.0,1.18324945]
[1750002992153,0.002,105700.0,105690.0,1.16558584]
[1750002992601,0.002,105700.0,105690.0,1.18324945]
[1750002992818,0.002,105700.0,105690.0,1.18324949]
[1750002993034,0.002,105700.0,105690.0,1.16558584]
[1750002993270,0.002,105700.0,105690.0,1.18324949]
[1750002993489,0.90912597,105720.0,105710.0,0.19865651]
[1750002993909,0.93386692,105720.0,105710.0,0.20811608]
[1750002994337,0.93386692,105720.0,105710.0,0.21632016]
[1750002994543,0.32976541,105720.0,105710.0,0.21632016]
[1750002994753,0.33076541,105720.0,105710.0,0.19865651]
[1750002994965,0.30602446,105720.0,105710.0,0.22577973]